[Event "4th Baskent University Open 2019"]
[Site "Ankara"]
[Date "2019.06.21"]
[Round "8"]
[White "Korkmaz, Necmettin"]
[Black "Guliev, Logman"]
[Result "0-1"]
[ECO "B67"]
[WhiteElo "2098"]
[BlackElo "2320"]
[Annotator "NA"]
[PlyCount "104"]
[EventDate "2019.06.18"]
[EventType "swiss"]
[EventCountry "TUR"]
[SourceTitle "playchess.com"]
[Source "ChessBase"]
[SourceQuality "1"]
[TimeControl "5400+30"]

1. e4 {[%emt 0:00:30]} c5 {[%emt 0:00:30]} 2. Nf3 {[%emt 0:01:30]} d6 {[%emt 0:00:30]} 3. d4 {[%emt 0:00:00]} cxd4 {[%emt 0:00:00]} 4. Nxd4 {[%emt 0:00:00]} Nf6 {[%emt 0:00:00]} 5. Nc3 {[%emt 0:00:00]} Nc6 {[%emt 0:00:00]} 6. Bg5 {[%emt 0:01:00]} e6 {[%emt 0:00:00]} 7. Qd2 {[%emt 0:01:30]} a6 {[%emt 0:00:00]} 8. O-O-O {[%emt 0:01:30]} Bd7 {[%emt 0:01:00]} 9. f3 {[%emt 0:04:30]} Be7 {[%emt 0:04:30]} 10. h4 {[%emt 0:01:30]} Nxd4 {[%emt 0:03:30]} 11. Qxd4 {[%emt 0:00:30]} Bc6 {[%emt 0:00:30]} 12. h5 {[%emt 0:16:30]} Qa5 {[%emt 0:06:30]} 13. Bd2 $11 {[%emt 0:03:30]} h6 {[%emt 0:13:30]} 14. Kb1 {[%emt 0:01:30]} Qc5 {[%emt 0:09:30]} 15. Be3 {[%emt 0:04:30]} Qxd4 {[%emt 0:02:30]} 16. Bxd4 {[%emt 0:00:30]} e5 {[%emt 0:03:30]} 17. Bf2 {[%emt 0:04:30]} b5 {[%emt 0:00:30]} 18. Bh4 {[%emt 0:04:30]} Rd8 {[%emt 0:06:30]} 19. Bxf6 {[%emt 0:01:30]} Bxf6 {[%emt 0:03:30]} 20. a4 {[%emt 0:04:30]} bxa4 {[%emt 0:07:30]} 21. Bxa6 {[%emt 0:01:30]} Ke7 {[%emt 0:02:30]} 22. Bb5 {[%emt 0:00:30]} Bxb5 {[%emt 0:00:30]} 23. Nxb5 {[%emt 0:00:30]} Rd7 {[%emt 0:03:30]} 24. Rd3 {[%emt 0:08:30]} Ke6 {[%emt 0:06:30]} 25. Rhd1 {[%emt 0:06:30]} Be7 {[%emt 0:00:30]} 26. Rc3 {[%emt 0:07:30]} Rb8 {[%emt 0:06:32]} 27. Nc7+ {[%emt 0:01:30]} Kf6 {[%emt 0:00:06]} 28. g4 {[%emt 0:12:17]} Kg5 {[%emt 0:01:13]} 29. Ka2 {[%emt 0:00:55]} Bd8 {[%emt 0:01:47]} 30. Nd5 {[%emt 0:00:03]} Rdb7 {[%emt 0:00:00]} 31. Rb1 {[%emt 0:00:07]} Bb6 {[%emt 0:00:45]} 32. Rc4 {[%emt 0:00:54]} Ra7 {[%emt 0:03:24]} 33. Rb4 {[%emt 0:00:48]} Ra6 {[%emt 0:00:06]} 34. Rd1 {[%emt 0:00:04]} Ba7 {[%emt 0:00:22]} 35. Rc4 {[%emt 0:04:09]} Bd4 {[%emt 0:01:40]} 36. Rdxd4 {[%emt 0:02:23]} exd4 {[%emt 0:00:04]} 37. Rxd4 {[%emt 0:00:00]} g6 {[%emt 0:01:55]} 38. hxg6 {[%emt 0:00:13]} fxg6 {[%emt 0:00:06]} 39. Rd3 {[%emt 0:01:59]} h5 {[%emt 0:01:26]} 40. gxh5 {[%emt 0:00:30]} gxh5 {[%emt 0:00:00]} 41. Rd1 {[%emt 0:00:44]} Rf8 {[%emt 0:01:09]} 42. Rg1+ {[%emt 0:00:08]} Kh6 {[%emt 0:01:04]} 43. f4 {[%emt 0:01:13]} Ra7 {[%emt 0:00:45]} 44. e5 {[%emt 0:01:49]} dxe5 {[%emt 0:00:52]} 45. fxe5 {[%emt 0:00:02]} Rg7 {[%emt 0:02:11]} 46. Re1 {[%emt 0:00:06]} Rg5 {[%emt 0:02:00]} 47. c4 {[%emt 0:01:35]} Rff5 {[%emt 0:01:28]} 48. e6 {[%emt 0:02:16]} Re5 {[%emt 0:00:02]} 49. Re3 {[%emt 0:00:56]} Rxe3 {[%emt 0:00:46]} 50. Nxe3 {[%emt 0:00:06]} Re5 {[%emt 0:00:00]} 51. Nd5 {[%emt 0:01:11]} Rxe6 {[%emt 0:00:00]} 52. Ka3 {[%emt 0:00:00]} h4 0-1

[Event "4th Baskent University Open 2019"]
[Site "Ankara"]
[Date "2019.06.21"]
[Round "8"]
[White "Rzayev, Askar Aliakbar"]
[Black "Can, Isik"]
[Result "0-1"]
[ECO "D10"]
[WhiteElo "2089"]
[BlackElo "2379"]
[Annotator "NA"]
[PlyCount "68"]
[EventDate "2019.06.18"]
[EventType "swiss"]
[EventCountry "TUR"]
[SourceTitle "playchess.com"]
[Source "ChessBase"]
[SourceQuality "1"]
[TimeControl "5400+30"]

1. d4 {[%emt 0:01:30]} d5 {[%emt 0:00:30]} 2. c4 {[%emt 0:00:30]} c6 {[%emt 0:00:30]} 3. cxd5 {[%emt 0:00:30]} cxd5 {[%emt 0:00:30]} 4. Nc3 {[%emt 0:00:00]} Nf6 {[%emt 0:00:00]} 5. Bf4 {[%emt 0:00:00]} Nc6 {[%emt 0:00:00]} 6. e3 {[%emt 0:00:00]} Bf5 {[%emt 0:00:00]} 7. Qb3 {[%emt 0:00:00]} Na5 {[%emt 0:00:00]} 8. Qa4+ {[%emt 0:00:30]} Bd7 {[%emt 0:00:30]} 9. Qd1 {[%emt 0:00:00]} e6 {[%emt 0:01:30]} 10. Bd3 {[%emt 0:01:00]} Rc8 {[%emt 0:01:30]} 11. Nf3 {[%emt 0:00:30]} Nc4 {[%emt 0:07:30]} 12. Qe2 {[%emt 0:00:30]} Bb4 {[%emt 0:00:30]} 13. Bxc4 {[%emt 0:02:30]} dxc4 {[%emt 0:03:30]} 14. O-O {[%emt 0:00:30]} O-O {[%emt 0:07:30]} 15. Bg5 {[%emt 0:01:30]} Be7 {[%emt 0:10:30]} 16. e4 {[%emt 0:07:30]} h6 $11 {[%emt 0:06:30]} 17. Bh4 {[%emt 0:04:30]} b5 {[%emt 0:01:30]} 18. e5 {[%emt 0:01:30]} Nd5 {[%emt 0:01:30]} 19. Bxe7 {[%emt 0:01:30]} Nxc3 {[%emt 0:06:30]} 20. bxc3 {[%emt 0:00:30]} Qxe7 {[%emt 0:00:00]} 21. a3 {[%emt 0:02:30]} Bc6 {[%emt 0:07:00]} 22. Nd2 {[%emt 0:01:30]} a5 {[%emt 0:03:30]} 23. Rfb1 {[%emt 0:03:30]} Rb8 {[%emt 0:03:30]} 24. a4 {[%emt 0:14:30]} bxa4 {[%emt 0:01:30]} 25. Qxc4 {[%emt 0:04:30]} Bxg2 {[%emt 0:01:30]} 26. Kxg2 {[%emt 0:02:30]} Qg5+ {[%emt 0:00:30]} 27. Kf1 {[%emt 0:24:30]} Qxd2 {[%emt 0:00:30]} 28. Rxb8 {[%emt 0:15:38]} Rxb8 {[%emt 0:00:30]} 29. Qc6 {[%emt 0:00:27]} a3 {[%emt 0:03:30]} 30. Kg2 {[%emt 0:01:12]} a2 {[%emt 0:00:30]} 31. Qa4 {[%emt 0:03:17]} Rb2 {[%emt 0:00:00]} 32. Qe8+ {[%emt 0:02:38]} Kh7 {[%emt 0:00:00]} 33. Qxf7 {[%emt 0:00:39]} Rb1 {[%emt 0:00:00]} 34. Qxe6 {[%emt 0:02:25]} Qg5+ {[%emt 0:00:00]} 0-1

[Event "4th Baskent University Open 2019"]
[Site "Ankara"]
[Date "2019.06.21"]
[Round "8"]
[White "Erdogan, Anil Berk"]
[Black "Olcum, Ahmet"]
[Result "1-0"]
[ECO "B09"]
[WhiteElo "2087"]
[BlackElo "2315"]
[Annotator "NA"]
[PlyCount "121"]
[EventDate "2019.06.18"]
[EventType "swiss"]
[EventCountry "TUR"]
[SourceTitle "playchess.com"]
[Source "ChessBase"]
[SourceQuality "1"]
[TimeControl "5400+30"]

1. e4 {[%emt 0:01:30]} d6 {[%emt 0:09:30]} 2. d4 {[%emt 0:00:30]} Nf6 {[%emt 0:00:30]} 3. Nc3 {[%emt 0:00:30]} g6 {[%emt 0:00:00]} 4. f4 {[%emt 0:00:30]} Bg7 {[%emt 0:00:00]} 5. Nf3 {[%emt 0:00:30]} O-O {[%emt 0:00:30]} 6. e5 {[%emt 0:00:00]} dxe5 {[%emt 0:00:00]} 7. fxe5 {[%emt 0:01:00]} Nd5 {[%emt 0:00:00]} 8. Bc4 {[%emt 0:01:30]} Be6 {[%emt 0:00:00]} 9. Nxd5 {[%emt 0:00:30]} Bxd5 {[%emt 0:00:00]} 10. Bxd5 {[%emt 0:00:00]} Qxd5 {[%emt 0:00:30]} 11. Qe2 {[%emt 0:00:00]} c5 {[%emt 0:00:00]} 12. c4 {[%emt 0:02:30]} Qd7 {[%emt 0:00:00]} 13. d5 {[%emt 0:06:30]} e6 {[%emt 0:00:00]} 14. d6 {[%emt 0:00:30]} Nc6 {[%emt 0:00:00]} 15. O-O {[%emt 0:01:30]} f6 $11 {[%emt 0:00:30]} 16. Bf4 {[%emt 0:35:30]} fxe5 {[%emt 0:16:30]} 17. Nxe5 {[%emt 0:01:30]} Nd4 {[%emt 0:31:30]} 18. Qe4 {[%emt 0:16:30]} Qxd6 {[%emt 0:01:30]} 19. Nxg6 {[%emt 0:02:30]} e5 {[%emt 0:00:30]} 20. Nxf8 {[%emt 0:01:30]} exf4 {[%emt 0:00:00]} 21. Nxh7 {[%emt 0:00:30]} Qh6 {[%emt 0:02:00]} 22. Rae1 {[%emt 0:03:30]} Qxh7 {[%emt 0:05:30]} 23. Qd5+ {[%emt 0:02:30]} Kh8 {[%emt 0:01:30]} 24. Rxf4 {[%emt 0:00:30]} Rf8 {[%emt 0:04:30]} 25. Rxf8+ {[%emt 0:07:10]} Bxf8 {[%emt 0:00:30]} 26. Qe5+ {[%emt 0:02:39]} Kg8 {[%emt 0:01:30]} 27. Qg5+ {[%emt 0:04:52]} Qg7 {[%emt 0:00:30]} 28. Qd5+ {[%emt 0:02:29]} Qf7 {[%emt 0:05:30]} 29. Re8 {[%emt 0:00:37]} Qxd5 {[%emt 0:09:38]} 30. cxd5 {[%emt 0:00:30]} Nf5 {[%emt 0:00:00]} 31. Rc8 {[%emt 0:01:32]} b6 {[%emt 0:05:21]} 32. b3 {[%emt 0:02:09]} Kf7 {[%emt 0:01:23]} 33. Rc7+ {[%emt 0:00:50]} Kf6 {[%emt 0:00:01]} 34. Rxa7 {[%emt 0:00:00]} Ne3 {[%emt 0:00:03]} 35. Rb7 {[%emt 0:01:15]} Nxd5 {[%emt 0:00:11]} 36. Kf2 {[%emt 0:00:17]} Ke5 {[%emt 0:04:48]} 37. Kf3 {[%emt 0:00:53]} Be7 {[%emt 0:00:23]} 38. g3 {[%emt 0:00:31]} Kd6 {[%emt 0:01:20]} 39. a4 {[%emt 0:01:07]} Kc6 {[%emt 0:00:33]} 40. Rb8 {[%emt 0:01:01]} Nc7 {[%emt 0:00:05]} 41. h4 {[%emt 0:00:00]} Ne6 {[%emt 0:00:07]} 42. Ke4 {[%emt 0:00:28]} Nd4 {[%emt 0:00:57]} 43. b4 {[%emt 0:00:30]} Ne2 {[%emt 0:00:46]} 44. bxc5 {[%emt 0:00:35]} Nxg3+ {[%emt 0:02:07]} 45. Kf3 {[%emt 0:00:28]} bxc5 {[%emt 0:00:05]} 46. a5 {[%emt 0:00:34]} Kc7 {[%emt 0:01:10]} 47. Rb2 {[%emt 0:00:30]} Nf5 {[%emt 0:00:37]} 48. a6 {[%emt 0:00:22]} Nd4+ {[%emt 0:00:15]} 49. Ke4 {[%emt 0:00:06]} Nc6 {[%emt 0:00:09]} 50. Rb7+ {[%emt 0:01:28]} Kc8 {[%emt 0:00:11]} 51. h5 {[%emt 0:00:00]} Bg5 {[%emt 0:00:14]} 52. Rg7 {[%emt 0:00:30]} Be7 {[%emt 0:00:15]} 53. a7 {[%emt 0:00:33]} Kb7 {[%emt 0:00:20]} 54. Kd5 {[%emt 0:00:29]} c4 {[%emt 0:00:36]} 55. a8=Q+ {[%emt 0:00:48]} Kxa8 {[%emt 0:00:30]} 56. Kxc6 {[%emt 0:00:00]} Bf6 {[%emt 0:00:00]} 57. Rg4 {[%emt 0:00:26]} c3 {[%emt 0:00:00]} 58. Rc4 {[%emt 0:00:18]} Kb8 {[%emt 0:00:10]} 59. Kd5 {[%emt 0:00:11]} Kb7 {[%emt 0:00:16]} 60. Ke4 {[%emt 0:00:21]} Kb6 {[%emt 0:00:17]} 61. Kd3 {[%emt 0:00:30]} 1-0

[Event "4th Baskent University Open 2019"]
[Site "Ankara"]
[Date "2019.06.21"]
[Round "8"]
[White "Makaraci, Tunahan"]
[Black "Darban, Morteza"]
[Result "1/2-1/2"]
[ECO "B60"]
[WhiteElo "1963"]
[BlackElo "2264"]
[Annotator "NA"]
[PlyCount "78"]
[EventDate "2019.06.18"]
[EventType "swiss"]
[EventCountry "TUR"]
[SourceTitle "playchess.com"]
[Source "ChessBase"]
[SourceQuality "1"]
[TimeControl "5400+30"]

1. e4 {[%emt 0:00:30]} c5 {[%emt 0:03:30]} 2. Nf3 {[%emt 0:00:30]} Nc6 {[%emt 0:00:30]} 3. d4 {[%emt 0:00:00]} cxd4 {[%emt 0:00:30]} 4. Nxd4 {[%emt 0:00:00]} Nf6 {[%emt 0:00:30]} 5. Nc3 {[%emt 0:00:00]} d6 {[%emt 0:00:00]} 6. Bg5 {[%emt 0:00:00]} g6 {[%emt 0:00:00]} 7. Bxf6 {[%emt 0:04:30]} exf6 {[%emt 0:00:30]} 8. Be2 {[%emt 0:00:00]} Bg7 {[%emt 0:23:30]} 9. Ndb5 {[%emt 0:02:00]} O-O {[%emt 0:00:30]} 10. Qxd6 {[%emt 0:02:30]} f5 {[%emt 0:00:30]} 11. Qa3 $15 {[%emt 0:13:30]} fxe4 {[%emt 0:03:30]} 12. O-O {[%emt 0:00:30]} e3 {[%emt 0:08:30]} 13. fxe3 {[%emt 0:06:30]} Qd2 {[%emt 0:06:30]} 14. Rf3 {[%emt 0:04:30]} Qxc2 {[%emt 0:28:30]} 15. Rd1 {[%emt 0:09:30]} a6 {[%emt 0:00:30]} 16. Nd4 {[%emt 0:00:30]} Nxd4 {[%emt 0:00:30]} 17. exd4 {[%emt 0:00:00]} Bf5 {[%emt 0:15:27]} 18. Bc4 {[%emt 0:10:00]} Rac8 {[%emt 0:03:59]} 19. Bb3 {[%emt 0:01:30]} Rxc3 {[%emt 0:00:03]} 20. bxc3 {[%emt 0:00:30]} Qe4 {[%emt 0:00:34]} 21. Rdf1 {[%emt 0:00:30]} h5 {[%emt 0:01:52]} 22. Qc5 {[%emt 0:02:30]} Re8 {[%emt 0:00:24]} 23. Bd5 {[%emt 0:01:30]} Qe7 {[%emt 0:00:36]} 24. Qc4 {[%emt 0:00:30]} b5 {[%emt 0:00:46]} 25. Qb3 {[%emt 0:00:30]} Qd7 {[%emt 0:00:04]} 26. h3 {[%emt 0:01:30]} h4 {[%emt 0:00:01]} 27. Kh1 {[%emt 0:02:30]} Rd8 {[%emt 0:01:02]} 28. c4 {[%emt 0:00:30]} bxc4 {[%emt 0:01:05]} 29. Bxc4 {[%emt 0:00:30]} a5 {[%emt 0:00:00]} 30. d5 {[%emt 0:00:30]} Be5 {[%emt 0:00:30]} 31. Qe3 {[%emt 0:00:30]} Bc7 {[%emt 0:00:28]} 32. Qh6 {[%emt 0:11:30]} Qd6 {[%emt 0:00:54]} 33. Rf4 {[%emt 0:00:00]} Re8 {[%emt 0:00:10]} 34. Qxh4 {[%emt 0:04:00]} Re4 {[%emt 0:00:01]} 35. g3 {[%emt 0:00:30]} Rxc4 {[%emt 0:00:29]} 36. Rxc4 {[%emt 0:00:30]} Qxd5+ {[%emt 0:00:07]} 37. Kh2 {[%emt 0:00:00]} Qd2+ {[%emt 0:00:26]} 38. Kh1 {[%emt 0:00:00]} Qd5+ {[%emt 0:01:57]} 39. Kh2 {[%emt 0:00:00]} Qd2+ {[%emt 0:00:00]} 1/2-1/2

[Event "4th Baskent University Open 2019"]
[Site "Ankara"]
[Date "2019.06.21"]
[Round "8"]
[White "Kanli, Alperen"]
[Black "Keseroglu, Yigit Can"]
[Result "1-0"]
[ECO "B07"]
[WhiteElo "1790"]
[BlackElo "1559"]
[Annotator "NA"]
[PlyCount "73"]
[EventDate "2019.06.18"]
[EventType "swiss"]
[EventCountry "TUR"]
[SourceTitle "playchess.com"]
[Source "ChessBase"]
[SourceQuality "1"]
[TimeControl "5400+30"]

1. e4 {[%emt 0:00:30]} g6 {[%emt 0:02:30]} 2. d4 {[%emt 0:00:00]} d6 {[%emt 0:00:30]} 3. Nc3 {[%emt 0:00:00]} Bg7 {[%emt 0:00:00]} 4. Bg5 {[%emt 0:00:30]} Nf6 {[%emt 0:03:00]} 5. e5 {[%emt 0:00:30]} Ng8 {[%emt 0:11:30]} 6. Nf3 {[%emt 0:09:30]} Nc6 {[%emt 0:01:30]} 7. Bb5 {[%emt 0:16:30]} a6 {[%emt 0:00:30]} 8. Ba4 {[%emt 0:04:30]} Bd7 {[%emt 0:05:30]} 9. exd6 {[%emt 0:01:30]} cxd6 {[%emt 0:00:30]} 10. O-O {[%emt 0:00:30]} Nf6 {[%emt 0:00:30]} 11. Re1 {[%emt 0:01:30]} O-O {[%emt 0:01:30]} 12. Bxf6 {[%emt 0:00:30]} exf6 {[%emt 0:01:30]} 13. Ne4 {[%emt 0:01:30]} Bf5 {[%emt 0:02:30]} 14. Ng3 {[%emt 0:00:30]} Bg4 {[%emt 0:01:30]} 15. h3 {[%emt 0:00:30]} Bd7 {[%emt 0:03:30]} 16. c3 {[%emt 0:01:30]} Ne7 {[%emt 0:02:30]} 17. Bxd7 {[%emt 0:02:30]} Qxd7 {[%emt 0:00:30]} 18. Qb3 {[%emt 0:00:00]} d5 {[%emt 0:08:30]} 19. Ne2 {[%emt 0:05:00]} Bh6 {[%emt 0:00:00]} 20. Nc1 {[%emt 0:00:00]} Bf4 {[%emt 0:13:00]} 21. Nd3 {[%emt 0:00:00]} Bd6 {[%emt 0:00:00]} 22. Kh1 {[%emt 0:06:30]} h5 {[%emt 0:03:00]} 23. Re2 {[%emt 0:01:30]} g5 {[%emt 0:02:30]} 24. Nd2 {[%emt 0:00:30]} b5 {[%emt 0:04:30]} 25. Rae1 {[%emt 0:05:30]} Qf5 {[%emt 0:04:30]} 26. Qc2 {[%emt 0:04:30]} Ng6 {[%emt 0:00:30]} 27. Nf1 {[%emt 0:00:00]} g4 {[%emt 0:04:30]} 28. Ne3 {[%emt 0:15:00]} Qg5 {[%emt 0:01:30]} 29. Qb3 {[%emt 0:00:00]} Nf4 {[%emt 0:08:34]} 30. Nxf4 {[%emt 0:04:05]} Qxf4 {[%emt 0:00:03]} 31. g3 {[%emt 0:02:59]} Qf3+ {[%emt 0:00:30]} 32. Kg1 {[%emt 0:00:30]} Rae8 {[%emt 0:00:10]} 33. hxg4 {[%emt 0:04:55]} hxg4 {[%emt 0:00:30]} 34. Qd1 {[%emt 0:00:00]} f5 {[%emt 0:06:05]} 35. Ng2 {[%emt 0:00:27]} Rxe2 {[%emt 0:04:44]} 36. Rxe2 {[%emt 0:02:27]} Be7 {[%emt 0:00:05]} 37. Ne1 {[%emt 0:00:14]} 1-0

[Event "4th Baskent University Open 2019"]
[Site "Ankara"]
[Date "2019.06.21"]
[Round "8"]
[White "Shapovalovi, Vasiko"]
[Black "Sungu, Yagiz Kaan"]
[Result "1/2-1/2"]
[ECO "A25"]
[WhiteElo "1759"]
[BlackElo "1465"]
[Annotator "NA"]
[PlyCount "51"]
[EventDate "2019.06.18"]
[EventType "swiss"]
[EventCountry "TUR"]
[SourceTitle "playchess.com"]
[Source "ChessBase"]
[SourceQuality "1"]
[TimeControl "5400+30"]

1. c4 {[%emt 0:00:30]} Nf6 {[%emt 0:00:30]} 2. Nc3 {[%emt 0:00:00]} g6 {[%emt 0:00:30]} 3. g3 {[%emt 0:00:00]} Bg7 {[%emt 0:00:30]} 4. Bg2 {[%emt 0:00:30]} O-O {[%emt 0:00:30]} 5. d3 {[%emt 0:00:00]} d6 {[%emt 0:00:00]} 6. e3 {[%emt 0:00:00]} e5 {[%emt 0:00:00]} 7. Nge2 {[%emt 0:00:00]} Nc6 {[%emt 0:03:30]} 8. O-O {[%emt 0:01:00]} Re8 {[%emt 0:01:30]} 9. a3 {[%emt 0:03:30]} a5 {[%emt 0:00:30]} 10. Rb1 {[%emt 0:01:30]} Be6 {[%emt 0:03:30]} 11. Nd5 {[%emt 0:01:30]} Bxd5 {[%emt 0:03:30]} 12. cxd5 {[%emt 0:00:30]} Ne7 {[%emt 0:00:30]} 13. e4 {[%emt 0:00:30]} c6 {[%emt 0:03:30]} 14. dxc6 {[%emt 0:05:30]} Nxc6 {[%emt 0:01:30]} 15. h3 {[%emt 0:01:30]} d5 {[%emt 0:03:30]} 16. Nc3 {[%emt 0:10:30]} dxe4 {[%emt 0:04:30]} 17. dxe4 {[%emt 0:00:30]} Qxd1 {[%emt 0:00:30]} 18. Rxd1 {[%emt 0:00:00]} Rad8 {[%emt 0:00:30]} 19. Be3 {[%emt 0:00:00]} Bf8 {[%emt 0:04:30]} 20. Bb6 {[%emt 0:01:30]} Rc8 {[%emt 0:06:30]} 21. h4 {[%emt 0:02:30]} Nd4 {[%emt 0:02:30]} 22. Bxa5 {[%emt 0:26:30]} Bxa3 {[%emt 0:09:30]} 23. bxa3 {[%emt 0:00:30]} Rxc3 {[%emt 0:00:30]} 24. Bxc3 {[%emt 0:00:00]} Ne2+ {[%emt 0:00:00]} 25. Kf1 {[%emt 0:00:00]} Nxc3 {[%emt 0:00:00]} 26. Rdc1 {[%emt 0:00:00]} 1/2-1/2

[Event "4th Baskent University Open 2019"]
[Site "Ankara"]
[Date "2019.06.21"]
[Round "8"]
[White "Celik, Meric"]
[Black "Yildirim, Ibrahim Halil"]
[Result "0-1"]
[ECO "B13"]
[WhiteElo "1650"]
[BlackElo "1787"]
[Annotator "NA"]
[PlyCount "78"]
[EventDate "2019.06.18"]
[EventType "swiss"]
[EventCountry "TUR"]
[SourceTitle "playchess.com"]
[Source "ChessBase"]
[SourceQuality "1"]
[TimeControl "5400+30"]

1. e4 {[%emt 0:00:30]} c6 {[%emt 0:04:30]} 2. d4 {[%emt 0:00:30]} d5 {[%emt 0:00:30]} 3. exd5 {[%emt 0:00:00]} cxd5 {[%emt 0:00:30]} 4. Bd3 {[%emt 0:00:00]} Nf6 {[%emt 0:00:00]} 5. c3 {[%emt 0:00:00]} Nc6 {[%emt 0:00:00]} 6. Bf4 {[%emt 0:00:00]} Bg4 {[%emt 0:02:30]} 7. Qb3 {[%emt 0:00:30]} Qc8 {[%emt 0:05:30]} 8. Nd2 {[%emt 0:01:30]} e6 {[%emt 0:00:00]} 9. Ngf3 {[%emt 0:00:00]} Be7 {[%emt 0:01:00]} 10. Qc2 {[%emt 0:06:00]} O-O {[%emt 0:02:30]} 11. O-O {[%emt 0:00:30]} Bh5 {[%emt 0:02:30]} 12. Ne5 {[%emt 0:03:30]} b5 {[%emt 0:10:30]} 13. Ndf3 {[%emt 0:02:30]} b4 {[%emt 0:06:30]} 14. Qa4 {[%emt 0:04:30]} Nxe5 {[%emt 0:08:30]} 15. dxe5 {[%emt 0:07:30]} Nd7 {[%emt 0:00:30]} 16. cxb4 {[%emt 0:00:30]} Nb6 {[%emt 0:05:30]} 17. Qb3 {[%emt 0:06:30]} Bg6 {[%emt 0:02:30]} 18. Rac1 {[%emt 0:02:30]} Qb7 {[%emt 0:02:30]} 19. Bb5 {[%emt 0:01:30]} Rfc8 {[%emt 0:00:00]} 20. Nd4 {[%emt 0:02:30]} Nc4 {[%emt 0:06:00]} 21. a3 {[%emt 0:08:30]} Qb6 {[%emt 0:05:30]} 22. Rfd1 {[%emt 0:05:30]} a5 {[%emt 0:00:30]} 23. bxa5 {[%emt 0:00:30]} Nxa5 {[%emt 0:00:30]} 24. Rxc8+ {[%emt 0:00:30]} Rxc8 {[%emt 0:02:30]} 25. Qa4 {[%emt 0:09:30]} Nc4 {[%emt 0:03:30]} 26. Qa6 {[%emt 0:10:30]} Qxa6 {[%emt 0:03:30]} 27. Bxa6 {[%emt 0:00:00]} Nxb2 {[%emt 0:00:00]} 28. Bxc8 {[%emt 0:01:00]} Nxd1 {[%emt 0:00:00]} 29. a4 {[%emt 0:02:30]} Bc5 {[%emt 0:00:30]} 30. Be3 {[%emt 0:00:00]} Nc3 {[%emt 0:00:00]} 31. a5 {[%emt 0:04:00]} Bxd4 {[%emt 0:02:00]} 32. a6 {[%emt 0:10:53]} Bxe3 {[%emt 0:00:30]} 33. fxe3 {[%emt 0:00:00]} Nb5 {[%emt 0:00:00]} 34. Kf2 {[%emt 0:00:47]} Kf8 {[%emt 0:00:00]} 35. Ke2 {[%emt 0:00:55]} Ke7 {[%emt 0:00:30]} 36. Kd2 {[%emt 0:00:30]} Kd8 {[%emt 0:00:30]} 37. Bb7 {[%emt 0:00:30]} Kc7 {[%emt 0:00:00]} 38. g3 {[%emt 0:01:08]} Kb6 {[%emt 0:00:00]} 39. h3 {[%emt 0:02:08]} Nc7 {[%emt 0:00:00]} 0-1

[Event "4th Baskent University Open 2019"]
[Site "Ankara"]
[Date "2019.06.21"]
[Round "8"]
[White "Alpman, Gokay Evren"]
[Black "Uysal, Ugur"]
[Result "1/2-1/2"]
[ECO "E90"]
[WhiteElo "1647"]
[BlackElo "1644"]
[Annotator "NA"]
[PlyCount "95"]
[EventDate "2019.06.18"]
[EventType "swiss"]
[EventCountry "TUR"]
[SourceTitle "playchess.com"]
[Source "ChessBase"]
[SourceQuality "1"]
[TimeControl "5400+30"]

1. d4 {[%emt 0:00:30]} Nf6 {[%emt 0:00:30]} 2. Nf3 {[%emt 0:00:00]} g6 {[%emt 0:00:30]} 3. Bg5 {[%emt 0:00:00]} Bg7 {[%emt 0:00:30]} 4. c4 {[%emt 0:01:30]} O-O {[%emt 0:00:30]} 5. Nc3 {[%emt 0:00:00]} h6 {[%emt 0:01:30]} 6. Bf4 {[%emt 0:01:00]} d6 {[%emt 0:00:00]} 7. e4 {[%emt 0:00:30]} Bg4 {[%emt 0:02:00]} 8. Be2 {[%emt 0:01:30]} Nfd7 {[%emt 0:00:30]} 9. Qd2 {[%emt 0:00:30]} Kh7 {[%emt 0:00:30]} 10. d5 {[%emt 0:12:30]} a5 {[%emt 0:07:30]} 11. h3 {[%emt 0:13:30]} Bxf3 {[%emt 0:00:30]} 12. Bxf3 {[%emt 0:00:30]} Na6 {[%emt 0:00:30]} 13. O-O {[%emt 0:03:30]} Nac5 {[%emt 0:04:30]} 14. Rae1 {[%emt 0:07:30]} e6 {[%emt 0:10:30]} 15. Be3 {[%emt 0:04:30]} Qh4 {[%emt 0:02:30]} 16. Bxc5 {[%emt 0:09:30]} Nxc5 {[%emt 0:00:30]} 17. Nb5 {[%emt 0:01:30]} Qe7 {[%emt 0:01:30]} 18. b3 {[%emt 0:01:30]} e5 {[%emt 0:02:30]} 19. Bd1 {[%emt 0:04:30]} Rfd8 {[%emt 0:05:30]} 20. Bc2 {[%emt 0:08:30]} c6 {[%emt 0:02:30]} 21. Nc3 {[%emt 0:00:30]} h5 {[%emt 0:02:30]} 22. a3 {[%emt 0:00:30]} Bh6 {[%emt 0:00:30]} 23. Qe2 {[%emt 0:04:30]} Qg5 {[%emt 0:07:30]} 24. Rd1 {[%emt 0:04:33]} Na6 {[%emt 0:01:30]} 25. Na4 {[%emt 0:01:01]} c5 {[%emt 0:02:30]} 26. Nb6 {[%emt 0:01:06]} Ra7 {[%emt 0:02:30]} 27. Rd3 {[%emt 0:01:18]} Rf8 {[%emt 0:03:30]} 28. Rf3 {[%emt 0:02:46]} Qd8 {[%emt 0:00:30]} 29. Na4 {[%emt 0:00:00]} Nc7 {[%emt 0:02:30]} 30. Nc3 {[%emt 0:01:04]} Ra8 {[%emt 0:06:30]} 31. Rb1 {[%emt 0:01:22]} b6 {[%emt 0:06:30]} 32. Qe1 {[%emt 0:02:38]} Rb8 {[%emt 0:03:30]} 33. b4 {[%emt 0:01:10]} axb4 {[%emt 0:00:30]} 34. axb4 {[%emt 0:00:04]} Na6 {[%emt 0:00:30]} 35. Na2 {[%emt 0:00:50]} Qg5 {[%emt 0:01:30]} 36. Ra3 {[%emt 0:01:51]} Nxb4 {[%emt 0:00:30]} 37. Nxb4 {[%emt 0:00:09]} cxb4 {[%emt 0:00:00]} 38. Qxb4 {[%emt 0:00:04]} Qd2 {[%emt 0:01:00]} 39. Qxd2 {[%emt 0:00:51]} Bxd2 {[%emt 0:00:00]} 40. Ra7 {[%emt 0:01:01]} Ba5 {[%emt 0:00:00]} 41. Ba4 {[%emt 0:02:34]} Kg7 {[%emt 0:00:30]} 42. Kf1 {[%emt 0:00:47]} Ra8 {[%emt 0:00:30]} 43. Rxa8 {[%emt 0:01:41]} Rxa8 {[%emt 0:00:30]} 44. Bc6 {[%emt 0:00:00]} Ra7 {[%emt 0:02:52]} 45. Ra1 {[%emt 0:00:48]} Rc7 {[%emt 0:00:43]} 46. Bb5 {[%emt 0:00:24]} Bb4 {[%emt 0:01:01]} 47. Ra6 {[%emt 0:01:31]} Bc5 {[%emt 0:00:06]} 48. f3 {[%emt 0:01:14]} 1/2-1/2